Cogmind - Beta 14 @@@ ROGUE MODE // 2024.10.03 @ 21:26:42 Player: Kaitocain Result: Destroyed by G-47 Trooper with Particle Gun Performance ------------- Evolutions (2) 1000 Regions Visited (5) 1000 Robots Destroyed (40) 200 Value Destroyed (975) 975 Prototype IDs (0) 0 Alien Tech Used (0) 0 Bonus (700) 700 TOTAL SCORE: 3875 Bonus ------- Entered Garrisons 200 Used RIF Installer 500 Cogmind --------- Core Integrity 0/550 Matter 300/300 Energy 100/100 System Corruption 0% Temperature Cool (6) Movement Core (100) Ox1 Location -8/Garrison Parts ------- > --- POWER (3) -------- (None) > --- PROPULSION (2) --- (None) > --- UTILITY (3) ------ Coolant Injector Small Storage Unit > --- WEAPON (3) ------- (None) > --- INVENTORY (8) ---- Advanced Treads Aluminum Leg Aluminum Leg Compact Wheel Tractor Beam Peak State ------------ > --- POWER ------------ Improved Deuterium Engine Improved Deuterium Engine Improved Deuterium Engine > --- PROPULSION ------- Advanced Treads Xenon Bombardment Thruster > --- UTILITY ---------- Coolant Injector Small Storage Unit Improved Terrain Scanner > --- WEAPON ----------- Pulse Rifle Pulse Rifle Autogun > --- INVENTORY -------- Coolant Injector [Rating: 35] Favorites ----------- Power Improved Deuterium Engine Engine Improved Deuterium Engine Power Core Light Nuclear Core Propulsion Light Treads Treads Light Treads Leg Aluminum Leg Flight Unit Xenon Bombardment Thruster Utility Small Storage Unit Device Improved Terrain Scanner Storage Small Storage Unit Weapon Pulse Rifle Energy Gun Pulse Rifle Ballistic Gun Assault Rifle Ballistic Cannon Light Cannon Launcher Mini Grenade Launcher Build | -11 -10 -9 -8 -8 -8 ------- Run | Yrd Mat Mat Mat Sto Gar Slots Evolved 4 | . . 2 2 . . Power 2 | . . 1 1 . . Propulsion . | . . . . . . Utility 1 | . . 1 . . . Weapon 1 | . . . 1 . . Parts Attached 40 | 6 1 8 20 . 5 Power 10 | 1 . 2 6 . 1 Engine 8 | 1 . 2 5 . . Core 2 | . . . 1 . 1 Reactor . | . . . . . . Propulsion 12 | 2 . 2 6 . 2 Treads 5 | 2 . . 3 . . Leg 4 | . . 2 . . 2 Wheel . | . . . . . . Hover . | . . . . . . Flight 3 | . . . 3 . . Utility 6 | 2 . 1 2 . 1 Device 5 | 1 . 1 2 . 1 Storage 1 | 1 . . . . . Processor . | . . . . . . Hackware . | . . . . . . Protection . | . . . . . . Artifact . | . . . . . . Weapon 12 | 1 1 3 6 . 1 Energy Gun 5 | . . 2 2 . 1 Energy Cannon . | . . . . . . Ballistic Gun 4 | 1 . . 3 . . Ballistic Cannon 2 | . 1 . 1 . . Launcher 1 | . . 1 . . . Special Weapon . | . . . . . . Impact Weapon . | . . . . . . Slashing Weapon . | . . . . . . Piercing Weapon . | . . . . . . Special Melee Weapon . | . . . . . . Unidentified Prototypes . | . . . . . . Parts Lost 26 | . . 8 5 . 13 Power 8 | . . 3 1 . 4 Propulsion 6 | . . 2 1 . 3 Utility 2 | . . . . . 2 Weapon 10 | . . 3 3 . 4 Highest Loss Streak 6 | . . 6 5 . 5 To Critical Strikes . | . . . . . . Average Slot Usage (%) 84 | . 92 92 83 100 67 Engine 17 | . 14 20 21 27 10 Treads 10 | . 28 6 6 9 5 Leg 4 | . . 13 . . 4 Flight 4 | . . . 10 9 2 Device 17 | . 14 18 18 18 16 Storage 10 | . 14 11 9 9 9 Energy Gun 7 | . . 9 5 9 10 Ballistic Gun 6 | . 14 . 6 9 4 Ballistic Cannon 3 | . 6 . 4 9 2 Launcher 2 | . . 9 . . . Peak Build Rating 35 | 8 9 15 33 33 35 Average Rating 18 | 3 8 13 27 33 21 On Entrance 14 | . 8 9 6 33 33 Naked Turns . | . . . . . . Heaviest Build 46 | 13 16 20 46 46 46 Greatest Support 40 | 40 40 40 28 22 22 Greatest Overweight (x) 10 | . . 1 10 2 3 Average Overweight (x) . | . . . 1 2 . Largest Inventory Capacity 8 | 8 8 8 8 8 8 Average Capacity 7 | 7 8 8 8 8 8 Most Carried 7 | 5 5 6 7 2 5 Average Carried 3 | 3 4 4 3 2 1 Final Capacity 8 | 8 8 8 8 8 8 Final Carried 5 | 4 4 4 2 2 5 Class Distribution -------------------- 74% | Mutant 18% | Skirmisher 6% | Gunner Dominant Class ---------------- Mutant | -10/Materials Mutant | -9/Materials Mutant | -8/Materials Skirmisher | -8/Storage Mutant | -8/Garrison Resources | -11 -10 -9 -8 -8 -8 ----------- Run | Yrd Mat Mat Mat Sto Gar Matter Collected 681 | 215 168 113 91 46 48 Remotely . | . . . . . . Salvage Created 1029 | 23 282 225 152 76 271 Parts 74 | 4 11 23 20 2 14 Haulers Intercepted . | . . . . . . Recyclers Shooed . | . . . . . . Parts Field Recycled . | . . . . . . Retrieved Matter . | . . . . . . Parts Self-Destructed . | . . . . . . Prevented . | . . . . . . Kills | -11 -10 -9 -8 -8 -8 ------- Run | Yrd Mat Mat Mat Sto Gar Combat Hostiles Destroyed 33 | . 6 8 8 2 9 Guns 21 | . 3 3 6 . 9 Cannons 7 | . 3 . 2 2 . AOE 5 | . . 5 . . . Classes Destroyed 8 | 1 3 3 1 . . Worker 1 | . . . 1 . . Builder 1 | . . 1 . . . Tunneler 1 | 1 . . . . . Recycler 2 | . 2 . . . . Watcher 2 | . . 2 . . . Swarmer 16 | . 2 3 7 . 4 Grunt 9 | . 4 1 . . 4 Sentry 8 | . . 4 1 2 1 Best Kill Streak 8 | 1 8 4 3 2 5 Combat Bots Only 6 | . 6 3 3 2 5 Max Kills in Single Turn 4 | 1 2 4 1 1 1 Gunslinging . | . . . . . . Exploded 3 | . . 3 . . . Melee . | . . . . . . Uniques/NPCs Destroyed . | . . . . . . Combat | -11 -10 -9 -8 -8 -8 -------- Run | Yrd Mat Mat Mat Sto Gar Hostile Shots Fired 340 | . 61 48 76 18 137 Missed 97 | . 14 12 23 6 42 Damage Taken 3180 | . 386 739 615 183 1257 Core 795 | . 39 198 130 30 398 Absorbed by Shields 17 | . . . . . 17 Core Remaining (%) 78 | 100 84 50 . . . Volleys Fired 89 | 6 13 21 21 5 23 Largest 3 | 1 2 1 3 3 3 Hottest 149 | 20 55 65 118 121 149 Shots Fired 149 | 6 28 21 35 15 44 Gun 113 | 6 14 14 25 10 44 Cannon 29 | . 14 . 10 5 . Launcher 7 | . . 7 . . . Special . | . . . . . . Kinetic 77 | 6 28 . 21 10 12 Thermal 65 | . . 14 14 5 32 Explosive 7 | . . 7 . . . Electromagnetic . | . . . . . . Robot Hit Streak 11 | 4 4 9 7 3 11 Robot Miss Streak 4 | 1 4 2 3 1 1 Penetration Max . | . . . . . . Secondary Targets 4 | . . . . . 4 Max Gunslinging Chain 1 | . . . . . 1 Shots Hit Robots 99 | 5 15 17 18 10 34 Core Hits 57 | 1 8 19 9 4 16 Critical Kills . | . . . . . . Critical Parts Destroyed . | . . . . . . Critical Strikes 3 | . 1 . . . 2 Burn 2 | . . . . . 2 Blast 1 | . 1 . . . . Melee Attacks . | . . . . . . Impact . | . . . . . . Slashing . | . . . . . . Piercing . | . . . . . . Sneak Attacks . | . . . . . . Combat Hostiles . | . . . . . . Follow-up Attacks . | . . . . . . Damage Inflicted 2080 | 60 302 636 297 189 596 Guns 1242 | 60 113 173 228 95 573 Cannons 337 | . 189 . 54 94 . Explosions 432 | . . 432 . . . Melee . | . . . . . . Ramming 69 | . . 31 15 . 23 Kinetic 743 | 60 302 . 111 122 148 Thermal 836 | . . 173 171 67 425 Explosive 432 | . . 432 . . . Electromagnetic . | . . . . . . Impact . | . . . . . . Slashing . | . . . . . . Piercing . | . . . . . . Highest Corruption 2 | . 2 . . . . Average Corruption 2 | . 2 . . . . Corruption Purged . | . . . . . . Corruption Blocked . | . . . . . . Effects 3 | . 3 . . . . Message Errors 1 | . 1 . . . . Misfires 2 | . 2 . . . . Overload Shots . | . . . . . . Overflow Damage 118 | . 16 102 . . . Projectiles 16 | . 16 . . . . Explosions 102 | . . 102 . . . Melee . | . . . . . . Knockbacks 4 | . 3 . 1 . . Impact 1 | . . . 1 . . Kinetic 3 | . 3 . . . . Secondary . | . . . . . . Self-Inflicted Damage 284 | . . 269 7 . 8 Shots 3 | . . 3 . . . Rammed 11 | . . 1 2 . 8 Targets Rammed 26 | . . 10 2 . 14 Kicked 15 | . . 9 . . 6 Crushed . | . . . . . . Highest Temperature 199 | . 30 160 197 195 199 Average Temperature 97 | . 11 65 122 109 116 Received Heat Transfer 879 | . 60 120 90 81 528 Siege Activations . | . . . . . . Robots Corrupted 1 | . . . 1 . . Combat Hostiles . | . . . . . . Parts Fried 2 | . . . 2 . . Impact Corruptions 1 | . . . 1 . . Robots Melted . | . . . . . . Combat Hostiles . | . . . . . . Parts Melted 4 | . . 1 . . 3 Heat Transferred 1998 | . . 407 370 148 1073 Parts Sabotaged . | . . . . . . Parts Stolen . | . . . . . . Parts Stripped . | . . . . . . Power Chain Reactions . | . . . . . . Alert | -11 -10 -9 -8 -8 -8 ------- Run | Yrd Mat Mat Mat Sto Gar Peak Influence 377 | 5 280 370 377 86 195 Initial 156 | . 3 118 156 11 55 Average 164 | 1 119 257 201 62 124 Maximum Alert Level 1 | . 1 1 1 . . Low Security (%) 62 | 100 63 26 44 100 100 Level 1 37 | . 36 73 55 . . Level 2 . | . . . . . . Level 3 . | . . . . . . Level 4 . | . . . . . . Level 5 . | . . . . . . High Security . | . . . . . . Max Security . | . . . . . . Squads Dispatched 3 | . 1 2 . . . Investigation . | . . . . . . Extermination . | . . . . . . Reinforcement 3 | . 1 2 . . . Assault . | . . . . . . Garrison . | . . . . . . Intercept . | . . . . . . Searches Triggered . | . . . . . . Construction Impeded . | . . . . . . Haulers Reinforced . | . . . . . . Active Scanning Responses . | . . . . . . Cargo Convoy Interrupts . | . . . . . . Stealth | -11 -10 -9 -8 -8 -8 --------- Run | Yrd Mat Mat Mat Sto Gar Distress Signals 4 | . 1 3 . . . Communications Jammed . | . . . . . . Distress Signals . | . . . . . . Times Spotted 69 | . 16 18 11 2 22 Peak Tracking Total 11 | . 5 5 5 2 11 Tactical Retreats 8 | . 4 1 2 . 1 Traps | -11 -10 -9 -8 -8 -8 ------- Run | Yrd Mat Mat Mat Sto Gar Traps Triggered 3 | . 1 . . . 2 Indirectly . | . . . . . . Trap Hack Attempts . | . . . . . . Triggered . | . . . . . . Disarmed . | . . . . . . Reprogrammed . | . . . . . . Reused . | . . . . . . Traps Extracted . | . . . . . . Installed . | . . . . . . Triggered . | . . . . . . Machines | -11 -10 -9 -8 -8 -8 ---------- Run | Yrd Mat Mat Mat Sto Gar Machines Disabled 4 | . . 4 . . . Max in Single Turn 2 | . . 2 . . . Machines Repaired . | . . . . . . Machines Dismantled . | . . . . . . Machines Sabotaged . | . . . . . . Overloaded Fab Kills . | . . . . . . Hacking | -11 -10 -9 -8 -8 -8 --------- Run | Yrd Mat Mat Mat Sto Gar Machines Accessed 4 | . 1 . 2 1 . Terminals 2 | . 1 . 1 . . Fabricators . | . . . . . . Repair Stations . | . . . . . . Recycling Units 1 | . . . 1 . . Scanalyzers . | . . . . . . Garrison Access 1 | . . . . 1 . Total Hacks 12 | . 6 . 5 1 . Successful 9 | . 5 . 3 1 . Failed 3 | . 1 . 2 . . Catastrophic . | . . . . . . Database Lockouts . | . . . . . . Manual . | . . . . . . Terminals 9 | . 6 . 3 . . Fabricators . | . . . . . . Repair Stations . | . . . . . . Recycling Units 2 | . . . 2 . . Scanalyzers . | . . . . . . Garrison Access 1 | . . . . 1 . Terminal Hacks 7 | . 5 . 2 . . Record 5 | . 5 . . . . Alert Level 1 | . . . 1 . . Unreport Threat 1 | . . . 1 . . Fabricator Hacks . | . . . . . . Repair Station Hacks . | . . . . . . Recycling Unit Hacks 1 | . . . 1 . . Retrieve Matter 1 | . . . 1 . . Scanalyzer . | . . . . . . Garrison Access Hacks 1 | . . . . 1 . Unlock Access 1 | . . . . 1 . Unauthorized Hacks . | . . . . . . Terminals . | . . . . . . Fabricators . | . . . . . . Repair Stations . | . . . . . . Recycling Units . | . . . . . . Scanalyzers . | . . . . . . Garrison Access . | . . . . . . Data Cores Recovered . | . . . . . . Used . | . . . . . . Hacking Detections 3 | . 1 . 1 1 . Full Trace Events . | . . . . . . Feedback Events . | . . . . . . Feedback Blocked . | . . . . . . Robot Schematics Acquired . | . . . . . . Robots Built . | . . . . . . Authchips . | . . . . . . Time . | . . . . . . Total Robot Build Rating . | . . . . . . Part Schematics Acquired . | . . . . . . Parts Built . | . . . . . . Authchips . | . . . . . . Time . | . . . . . . Total Part Build Rating . | . . . . . . Parts Repaired . | . . . . . . Time . | . . . . . . Parts Recycled . | . . . . . . Recycled Matter . | . . . . . . Retrieved Matter 144 | . . . 144 . . Retrieved Components . | . . . . . . Parts Scanalyzed . | . . . . . . Part Schematics Acquired . | . . . . . . Parts Damaged . | . . . . . . Bothacking | -11 -10 -9 -8 -8 -8 ------------ Run | Yrd Mat Mat Mat Sto Gar Used RIF Installer 1 | . . . . . 1 Robots Hacked . | . . . . . . Non-combat . | . . . . . . Combat . | . . . . . . Robot Hacks Applied . | . . . . . . Relay Couplers Released . | . . . . . . Fabnet Peak Effective % . | . . . . . . Robots Rewired . | . . . . . . Allies Hacked . | . . . . . . Hacks Repelled . | . . . . . . Allies | -11 -10 -9 -8 -8 -8 -------- Run | Yrd Mat Mat Mat Sto Gar Total Allies . | . . . . . . Largest Group . | . . . . . . Highest-Rated Group . | . . . . . . Highest-Rated Ally . | . . . . . . Total Orders . | . . . . . . Ally Attacks . | . . . . . . Total Damage . | . . . . . . Kills . | . . . . . . Allies Corrupted . | . . . . . . Allies Melted . | . . . . . . Intel | -11 -10 -9 -8 -8 -8 ------- Run | Yrd Mat Mat Mat Sto Gar Robot Analysis Total . | . . . . . . Derelict Logs Recovered . | . . . . . . Drone Launches . | . . . . . . Drone Recoveries . | . . . . . . Exploration | -11 -10 -9 -8 -8 -8 ------------- Run | Yrd Mat Mat Mat Sto Gar Turns Passed 2441 | 122 394 573 628 168 556 Spaces Moved 1267 | 89 212 416 236 51 263 Core 182 | 43 . 56 25 . 58 Treads 665 | 46 212 103 138 51 115 Legs 347 | . . 257 . . 90 Wheels . | . . . . . . Hover . | . . . . . . Flight 73 | . . . 73 . . Fastest Speed 50 | 50 160 50 50 305 100 Average Speed 164 | 106 160 120 226 305 173 Slowest Speed 550 | 160 160 190 550 305 305 Overloaded Moves . | . . . . . . Propulsion Burnouts . | . . . . . . Robots Hopped . | . . . . . . Cave-ins Triggered . | . . . . . . Exploration Rate (%) 22 | 4 36 38 12 10 37 Regions Visited 5 Branch Regions 1 Pre-discovered Areas . | . . . . . . Known Exits Taken 1 | . . . . 1 . Unknown Exits Taken 4 | 1 1 1 1 . . Scrap Searched . | . . . . . . Spaces Dug . | . . . . . . Terrain Destroyed 103 | . . 103 . . . Melee . | . . . . . . Projectile . | . . . . . . AOE 103 | . . 103 . . . Terrain Rammed . | . . . . . . Walls Destroyed . | . . . . . . Machines Disabled . | . . . . . . Actions | -11 -10 -9 -8 -8 -8 --------- Run | Yrd Mat Mat Mat Sto Gar Total 1496 | 110 241 464 299 55 327 Wait 16 | . 15 . 1 . . Move 1261 | 88 211 415 235 50 262 Hop . | . . . . . . Pick Up 41 | 10 1 6 14 . 10 Fast Attach . | . . . . . . Attach 34 | 6 1 6 16 . 5 Detach 6 | . . 2 3 . 1 Swap 6 | . . 2 4 . . Drop 8 | . . 2 3 . 3 Fire 89 | 6 13 21 21 5 23 Melee . | . . . . . . Ram 10 | . . . 2 . 8 Kick 15 | . . 9 . . 6 Crush 1 | . . 1 . . . Escape Stasis 8 | . . . . . 8 Rewire 1 | . . . . . 1 Trap . | . . . . . . Miscellaneous . | . . . . . . Route ------- -11/Scrapyard -10/Materials -9/Materials (discovered 2 exits: *Mat x2) -8/Materials -8/Storage -8/Garrison (discovered 1 exit: [*Fac]) History --------- Turn | Location | Event 2 | -11/Scrapyard | Met Revision 17 13 | -11/Scrapyard | Discovered new exit (range 16) 123 | -11/Scrapyard | Entered Materials 306 | -10/Materials | Build established: Mutant 496 | -10/Materials | Discovered new exit (range 4) 517 | -10/Materials | Entered another Materials area 517 | -9/Materials | Evolved 2 slots: Power x1, Utility x1 1040 | -9/Materials | Discovered new exit (range 12) 1086 | -9/Materials | Discovered new exit (range 8) 1090 | -9/Materials | Entered another Materials area 1090 | -8/Materials | Evolved 2 slots: Power x1, Weapon x1 1102 | -8/Materials | Lost 6 parts (2p2n2w) 1469 | -8/Materials | Lost 5 parts (1p1n3w) 1697 | -8/Materials | Discovered new exit (range 7) 1718 | -8/Materials | Entered Storage 1877 | -8/Storage | Identified exit to Garrison 1886 | -8/Storage | Entered Garrison 1891 | -8/Garrison | Build established: Skirmisher 1926 | -8/Garrison | Installed Relay Interface Framework 2020 | -8/Garrison | Triggered checkpoint 2078 | -8/Garrison | Lost 5 parts (2p1n1u1w) 2172 | -8/Garrison | Triggered checkpoint 2225 | -8/Garrison | Lost 3 parts (1p2w) 2279 | -8/Garrison | Discovered new exit (range 10) 2322 | -8/Garrison | Triggered checkpoint 2367 | -8/Garrison | Core integrity fell below 50% 2383 | -8/Garrison | Core integrity fell below 20% 2410 | -8/Garrison | Lost 5 parts (1p2n1u1w) 2438 | -8/Garrison | Triggered checkpoint 2442 | -8/Garrison | Destroyed by G-47 Trooper with Particle Gun Last Messages --------------- Aluminum Leg destroyed. Critical hit (Burn: +37). Acquired Com. Wheel. Slammed into G-47 Trooper. Critical hit (Burn: +37). Coolant Injector destroyed. Slammed into Y-45 Defender. Critical hit (Burn: +37). Triggered Stasis Trap. A bubble of rippling energy engulfs the area. Field strength at 94. Field strength at 88. Field strength at 82. Beams of light sweep through the air. An alarm sounds. Field strength at 76. Garrison Door activated. Field strength at 66. Field strength at 56. Field strength at 50. Map ----- +----------------------------------------------------+ | ?????????????????????????????????????????????????? | | ?????????????????????????????????????????????????? | | ?????????????????????????????????????????????????? | | ?????????????????????????????????????????????????? | | ?????????????????????????????????????????????????? | | ?????????????????????????????????????????????????? | | ?????????????????????????????????????????????????? | | ?????????????????????????????????????????????????? | | ?????????????????????????????????????????????????? | | ?????????????????????????????????????????????????? | | ????????????????????????? ??????????????????????? | | ????????????????????????? ??????????????????????? | | ???????????????????#????? ??????????????????????? | | ??????????????????? ???? #?????????????????????? | | ??????????#########" ""## ##????????????????????? | | ?????????? ###??????????????????? | | ??????????? ???????????????????? | | ???????????? s ???????????????????? | | ?????????????# ## ##g #????????????????????? | | ?????????????# ## ## ###??????????????????? | | ?????????????" g #??????????????????? | | ?????????????" s #??????????????????? | | ?????????????" g #??????????????????? | | ?????????????" g ????????????######## | | ?????????????# ## ## #?????????????#"#%%%%= | | ???########### ## ##@ ^#?????????????#" %#### | | ???# #?????????????#" #??? | | ???# % % #?????????????#" #??? | | ???# ######## % #?????????????#"# #??? | | ???# #??????## ## ## ##?????????????### #??? | | ???# #???????# ## ## #????????????????# ###? | | ???# #???????# ######## #????????????????# #? | | ???# #???????# #??????# #????????????????# #? | | ##?# #???????# #??????# #????????????????# #? | | #?# #???????# #??????# #????????????????# ###? | | ###[ ######### #??????# #????????????????# #??? | | %%!= ^ #??????# ##############???# #??? | | =%[ #??????# #???# #??? | | =### ############??????# ##### #??? | | #?# #?????????????????############## #??? | | ""## #??????????????????????????????# ##### #??? | | #### #??????????????????????????????# #???# #??? | | ???# #??????????????????????????????# #???# #??? | | ???# #??????????????????????????????# #??? ??? | | ???# #??????????????????????????????# ###? ??? | | ???# #??????????????????????????????# #? T??? | | ???# #??????????????????????????????# < #?###??? | | ???# #??????????????????????????????# #??????? | | #### #??????????????????????????????######??????? | | #??????????????????????????????????????????? | +----------------------------------------------------+ Best States ------------- Heat Dissipation 31 Coolant Potential 130 Energy Generation 38 Energy Capacity 670 Matter Stores 300 Matter Capacity 300 Sight Range 16 Terrain Scan Range 16 Terrain Scan Density 10 Additional Mass Support 6 Evasion (%) 55 Recoil Reduction 2 Item Schematics ----------------- None Robot Schematics ------------------ None Fabricated ------------ Nothing Alien Tech Used ----------------- None Achievements -------------- Power Corrupts Challenges ------------ None Game ------ Seed ArmoredTeleporterAmplifier Manual? 0 Play Time 00:32:04 Cumulative 3.4 hours Start 2024.10.01 @ 07:09:07 End 2024.10.03 @ 21:26:42 Sessions 7 Manual Loads 0 Difficulty Rogue Special Mode None Game No. 15 Rogue 15 Adventurer 0 Explorer 0 Win Type - Total 0 Types 0/0/0/0/0/0/0/0/0 Lore% 2 Gallery% 9 Achievement% 9 Wizard Run 0 Options --------- Layout 1 ASCII 0 Keyboard 0 Movement Arrows Keybinds 0 Fullscreen 1 Font 24/Terminus Map View 50x35 Zoom Use 0% Tactical HUD 0 Map Filters NONE Filters BRIGHTNESS(80)|SATURATION(70) Steam 1 RUN: d94949bc-be0e-4a4e-971b-821563761075